bitfinex/quotes_SOLUSD_20250617
["timestamp","ask_amount","ask_price","bid_price","bid_amount"]
[1750120823816,12.68513635,150.1,150.08,7.86]
[1750120824316,12.68513635,150.11,150.08,14.52310035]
[1750120825917,43.04513635,150.12,150.08,14.52310035]
[1750120826118,18.64964886,150.08,150.0,20.78831817]
[1750120826418,12.68513635,150.01,150.0,8.10318182]
[1750120826991,30.34,150.03,150.0,27.45498483]
[1750120827192,26.0,150.08,150.02,12.68513635]
[1750120827193,43.02513635,150.06,150.02,12.68513635]
[1750120827620,6.225,150.1,150.05,12.68513635]
[1750120827792,12.68513635,150.09,150.05,12.68513635]
[1750120828393,43.02513635,150.1,150.05,12.68513635]
[1750120829200,43.02513635,150.1,150.06,6.66400106]
[1750120829619,30.34,150.1,150.06,6.66400106]
[1750120829822,30.34,150.1,150.01,6.66622225]
[1750120829823,12.68513635,150.07,150.01,6.66622225]
[1750120830029,44.64964886,150.09,150.01,6.66622225]
[1750120830030,12.68513635,150.02,150.01,6.66622225]
[1750120830228,12.68513635,150.03,150.0,6.90970708]
[1750120830523,12.68513635,150.04,150.0,6.90970708]
[1750120830918,48.98964886,150.06,150.0,6.90970708]
[1750120831122,12.68513635,150.03,150.0,0.24318182]
[1750120831426,12.68513635,150.02,150.0,6.90983061]
[1750120831646,0.28432314,150.08,150.01,12.68513635]
[1750120831798,43.00513635,150.07,150.03,12.68513635]
[1750120832309,43.00513635,150.07,150.02,12.68513635]
[1750120832505,30.32,150.07,150.03,12.68513635]
[1750120832722,12.68513635,150.1,150.05,12.68513635]
[1750120832932,30.32,150.09,150.05,12.68513635]
[1750120833297,43.00513635,150.09,150.06,6.66400106]
[1750120833808,30.32,150.09,150.06,19.34913741]
[1750120834111,43.00513635,150.09,150.06,6.66400106]
[1750120834317,43.00513635,150.09,150.05,6.66430698]
[1750120834624,12.68513635,150.08,150.04,6.66474844]
[1750120835525,31.33478521,150.08,150.03,12.68513635]
[1750120835926,12.68513635,150.07,150.02,19.35091424]
[1750120836506,42.98513635,150.06,150.02,19.35091424]
[1750120836703,42.98513635,150.06,150.02,6.66577789]
[1750120837540,12.68513635,150.04,150.0,0.24318182]
[1750120837763,42.98513635,150.03,150.0,0.24318182]
[1750120837928,30.3,150.03,150.0,6.90976611]
[1750120838129,30.3,150.03,150.0,19.59490246]
[1750120838755,30.3,150.03,150.0,6.90976611]
[1750120839070,30.3,150.03,150.0,19.59490246]
[1750120839252,30.3,150.03,150.0,6.90976611]
[1750120839635,18.64964886,150.13,150.02,12.68513635]
[1750120839951,42.96513635,150.12,150.07,12.68513635]
[1750120840754,42.96513635,150.12,150.07,19.34833077]
[1750120841464,42.96513635,150.12,150.03,26.14216157]
[1750120841465,12.68513635,150.08,150.03,12.68513635]
[1750120841651,30.28,150.07,150.03,12.68513635]
[1750120842161,30.28,150.07,150.04,12.68513635]
[1750120842846,30.28,150.07,150.05,6.66444518]
[1750120843047,30.28,150.07,150.02,26.0]
[1750120843048,42.96513635,150.07,150.02,26.0]
[1750120843244,12.68513635,150.06,150.02,19.35091424]
[1750120843561,42.96513635,150.07,150.02,19.35091424]
[1750120843750,12.68513635,150.06,150.02,19.35091424]
[1750120845149,42.94513635,150.06,150.02,6.66577789]
[1750120845472,18.64964886,150.1,150.02,49.33022263]
[1750120845676,12.68513635,150.08,150.03,12.68513635]
[1750120845843,12.68513635,150.1,150.05,12.68513635]
[1750120846173,156.7949,150.15,150.09,12.68513635]
[1750120846174,12.68513635,150.14,150.09,12.68513635]
[1750120846352,12.68513635,150.15,150.11,12.68513635]
[1750120846772,30.24,150.14,150.1,12.68513635]
[1750120846950,42.92513635,150.14,150.1,12.68513635]
[1750120847269,30.24,150.13,150.1,19.34711145]
[1750120847863,30.24,150.13,150.1,6.6619751]
[1750120848059,42.92513635,150.13,150.09,12.68513635]
[1750120848267,12.68513635,150.12,150.08,19.34783449]
[1750120848865,42.92513635,150.12,150.08,19.34783449]
[1750120849591,30.24,150.12,150.09,12.68513635]
[1750120849801,30.24,150.12,150.08,6.66269814]
[1750120850085,30.24,150.12,150.09,12.68513635]
[1750120851195,12.68513635,150.19,150.11,12.68513635]
[1750120851358,7.6442142,150.24,150.11,12.68513635]
[1750120851359,6.2705,150.23,150.17,6.65911966]
[1750120851561,14.30173635,150.24,150.19,12.68513635]
[1750120851761,12.68513635,150.25,150.2,12.68513635]
[1750120851993,30.22,150.24,150.18,0.14216157]
[1750120852280,18.933972,150.23,150.17,6.65911966]
[1750120852481,12.68513635,150.19,150.15,14.41989204]
[1750120852672,42.90513635,150.19,150.15,14.41989204]
[1750120855585,12.68513635,150.17,150.13,6.66081591]
[1750120855787,30.18,150.19,150.16,12.68513635]
[1750120856780,30.18,150.2,150.17,6.65911966]
[1750120857100,30.18,150.2,150.17,19.34425601]
[1750120858416,30.18,150.2,150.15,12.68513635]
[1750120858577,42.86513635,150.2,150.15,12.68513635]
[1750120858786,30.18,150.2,150.17,6.65911966]
[1750120859293,38.68513635,150.24,150.19,12.68513635]
[1750120859617,30.16,150.23,150.19,12.68513635]
[1750120859906,31.33478521,150.26,150.21,12.68513635]
[1750120860098,30.16,150.23,150.21,12.68513635]
[1750120860298,18.64964886,150.3,150.22,12.68513635]
[1750120860500,18.64964886,150.27,150.24,12.68513635]
[1750120860691,12.68513635,150.28,150.24,12.68513635]
[1750120861009,19.11407635,150.33,150.27,6.65468822]
[1750120861211,17.56687635,150.33,150.28,12.68513635]
[1750120861386,6.449,150.36,150.25,26.0]
[1750120861387,12.68513635,150.3,150.25,26.0]
[1750120861586,30.14,150.29,150.25,38.68513635]
[1750120861885,19.12741065,150.36,150.28,12.68513635]
[1750120861886,6.449,150.36,150.28,12.68513635]
[1750120862080,42.82513635,150.35,150.3,12.68513635]
[1750120862584,12.68513635,150.38,150.33,12.68513635]
[1750120862782,30.14,150.37,150.33,12.68513635]
[1750120862983,42.82513635,150.37,150.32,19.33760035]
[1750120863209,6.0621,150.4,150.33,12.68513635]
[1750120863410,30.14,150.39,150.35,12.68513635]
[1750120863708,6.5931,150.44,150.37,12.68513635]
[1750120863904,38.68513635,150.43,150.38,12.68513635]
[1750120864211,30.14,150.42,150.38,12.68513635]
[1750120864791,12.68513635,150.43,150.36,7.66]
[1750120865092,30.12,150.45,150.39,0.14216157]
[1750120865299,30.12,150.45,150.41,12.68513635]
[1750120865500,6.5931,150.48,150.4,12.68513635]
[1750120865681,12.68513635,150.48,150.44,12.68513635]
[1750120865880,14.37303355,150.53,150.44,7.66]
[1750120866114,12.68513635,150.47,150.44,7.66]
[1750120866413,42.78513635,150.48,150.44,7.66]
[1750120866611,30.1,150.48,150.45,12.68513635]
[1750120866794,7.7298,150.53,150.47,12.68513635]
[1750120866984,12.68513635,150.51,150.47,12.68513635]
[1750120867185,30.1,150.52,150.47,19.33066728]
[1750120867381,42.78513635,150.52,150.47,19.33066728]
[1750120867630,12.68513635,150.53,150.48,12.68513635]
[1750120867787,30.1,150.52,150.48,12.68513635]
[1750120867987,149.38432314,150.56,150.48,12.68513635]
[1750120867988,9.14898554,150.6,150.51,38.68513635]
[1750120868213,12.68513635,150.61,150.56,12.68513635]
[1750120868416,12.68513635,150.6,150.55,12.68513635]
[1750120868622,12.68513635,150.56,150.46,6.1715]
[1750120868809,18.64964886,150.53,150.48,7.64]
[1750120868992,12.68513635,150.5,150.48,7.64]
[1750120869194,42.76513635,150.5,150.48,7.64]
[1750120869390,30.08,150.5,150.48,7.64]
[1750120869801,30.08,150.53,150.49,12.68513635]
[1750120870191,30.08,150.53,150.5,12.68513635]
[1750120870410,30.08,150.53,150.51,12.68513635]
[1750120870712,30.08,150.53,150.48,14.28521642]
[1750120870914,30.08,150.53,150.5,12.68513635]
[1750120871119,30.08,150.53,150.51,12.68513635]
[1750120872010,30.06,150.55,150.51,12.68513635]
[1750120872207,26.0,150.58,150.52,12.68513635]
[1750120872402,26.0,150.58,150.54,12.68513635]
[1750120872403,30.06,150.58,150.54,12.68513635]
[1750120872597,42.74513635,150.58,150.54,12.68513635]
[1750120872806,42.74513635,150.58,150.51,0.14216157]
[1750120873016,12.68513635,150.57,150.53,12.68513635]
[1750120873218,12.68513635,150.58,150.53,19.32826284]
[1750120873395,12.68513635,150.58,150.53,6.64312649]
[1750120873396,30.04,150.58,150.53,6.64312649]
[1750120873601,12.68513635,150.57,150.52,12.68513635]
[1750120873799,30.04,150.58,150.5,19.32965462]
[1750120873800,12.68513635,150.55,150.5,19.32965462]
[1750120874610,12.68513635,150.55,150.5,6.64451827]
[1750120874862,12.68513635,150.54,150.49,12.68513635]
[1750120875024,42.70513635,150.54,150.49,19.33003439]
[1750120875707,12.68513635,150.51,150.48,7.64]
[1750120875941,30.02,150.5,150.45,60.81017077]
[1750120876098,0.28432314,150.52,150.45,60.81017077]
[1750120876099,12.68513635,150.48,150.45,60.81017077]
[1750120876433,12.68513635,150.46,150.45,60.81017077]
[1750120876913,30.02,150.49,150.45,80.14197058]
[1750120877508,30.02,150.49,150.45,67.45683423]
[1750120877707,42.70513635,150.49,150.45,60.81017077]
[1750120877922,12.68513635,150.46,150.45,60.81017077]
[1750120878510,12.68513635,150.46,150.42,7.64]
[1750120878511,31.33478521,150.46,150.42,7.64]
[1750120878707,30.0,150.45,150.42,7.64]
[1750120878911,12.68513635,150.43,150.42,7.64]
[1750120880936,30.0,150.45,150.42,26.97308417]
[1750120881109,30.0,150.45,150.43,12.68513635]
[1750120881309,42.68513635,150.48,150.43,12.68513635]
[1750120881525,38.68513635,150.49,150.44,12.68513635]
[1750120881725,14.31743635,150.54,150.48,12.68513635]
[1750120881925,1.5409,150.6,150.51,6.6440768]
[1750120882227,1.5409,150.6,150.46,26.14216157]
[1750120882228,12.68513635,150.53,150.46,26.14216157]
[1750120882420,12.68513635,150.53,150.48,12.68513635]
[1750120883318,12.68513635,150.53,150.48,19.33049548]
[1750120883724,12.68513635,150.53,150.48,12.68513635]
[1750120883932,12.68513635,150.53,150.46,26.0]
[1750120883933,12.68513635,150.51,150.46,12.68513635]
[1750120884119,12.68513635,150.48,150.42,0.14216157]
[1750120884437,12.68513635,150.49,150.44,12.68513635]
[1750120884641,42.66513635,150.5,150.45,12.68513635]
[1750120884938,29.98,150.5,150.46,12.68513635]
[1750120885234,29.98,150.5,150.48,12.68513635]
[1750120885410,29.98,150.5,150.47,12.68513635]
[1750120886348,29.98,150.5,150.48,12.68513635]
[1750120886530,29.98,150.5,150.47,12.68513635]
[1750120886712,6.63966536,150.61,150.47,6.2682]
[1750120887038,12.68513635,150.55,150.5,12.68513635]
[1750120887237,18.64964886,150.59,150.52,19.32877174]
[1750120887440,42.64513635,150.58,150.53,12.68513635]
[1750120887611,12.68513635,150.58,150.53,12.68513635]
[1750120887813,29.96,150.57,150.53,12.68513635]
[1750120888332,42.64513635,150.57,150.52,19.32877174]
[1750120888832,12.68513635,150.54,150.51,7.64]
[1750120889141,12.68513635,150.52,150.51,7.64]
[1750120889307,29.96,150.52,150.51,7.64]
[1750120889711,29.96,150.52,150.51,20.32513635]
[1750120889913,29.94,150.55,150.51,26.96921315]
[1750120890330,42.62513635,150.55,150.51,26.96921315]
[1750120890634,12.68513635,150.55,150.51,26.96921315]
[1750120890809,42.62513635,150.55,150.51,26.96921315]
[1750120891010,29.94,150.55,150.51,26.96921315]
[1750120892011,42.62513635,150.55,150.51,26.96921315]
[1750120892233,38.68513635,150.57,150.52,12.68513635]
[1750120892433,29.94,150.56,150.52,12.68513635]
[1750120892614,29.94,150.56,150.52,19.32853054]
[1750120892817,29.94,150.56,150.51,26.9691134]
[1750120893120,42.62513635,150.56,150.51,26.9691134]
[1750120894622,29.94,150.56,150.52,12.68513635]
[1750120894823,29.94,150.56,150.53,19.32833039]
[1750120895042,29.94,150.56,150.52,6.64350257]
[1750120895238,29.94,150.56,150.52,19.32863892]
[1750120896547,29.94,150.56,150.51,26.9691869]
[1750120896548,42.62513635,150.56,150.51,26.9691869]
[1750120897044,29.94,150.56,150.51,26.9691869]
[1750120897439,29.94,150.56,150.52,12.68513635]
[1750120898123,29.9,150.56,150.52,12.68513635]
[1750120898531,29.9,150.56,150.51,14.28405055]
[1750120898532,29.9,150.56,150.51,7.64]
[1750120898733,12.68513635,150.54,150.51,7.64]
[1750120899724,12.68513635,150.52,150.44,6.6471683]
[1750120900024,29.9,150.53,150.46,7.54]
[1750120900025,12.68513635,150.5,150.46,7.54]
[1750120900352,42.58513635,150.5,150.46,7.54]
[1750120900534,29.9,150.5,150.46,7.54]
[1750120900849,42.58513635,150.5,150.46,7.54]
[1750120901048,42.58513635,150.5,150.47,6.64584302]
[1750120901249,12.68513635,150.56,150.49,12.68513635]
[1750120901549,42.56513635,150.55,150.51,12.68513635]
[1750120902747,12.68513635,150.55,150.51,12.68513635]
[1750120902956,12.68513635,150.56,150.53,6.64319404]
[1750120903133,29.88,150.55,150.53,6.64319404]
[1750120903447,29.88,150.55,150.53,19.32833039]
[1750120904151,29.88,150.55,150.53,6.64319404]
[1750120904460,29.88,150.56,150.53,6.64319404]
[1750120904946,12.68513635,150.55,150.52,6.64363539]
[1750120905534,42.54513635,150.56,150.52,23.25272388]
[1750120906335,12.68513635,150.57,150.52,35.93786023]
[1750120906642,29.86,150.57,150.54,12.68513635]
[1750120906845,4.89509957,150.56,150.55,8.15324173]
[1750120907041,32.31378569,150.59,150.55,14.79555325]
[1750120907252,4.89332865,150.58,150.55,6.64231152]
[1750120907438,4.89332865,150.57,150.55,6.64231152]
[1750120907636,4.89332865,150.56,150.55,6.64231152]
[1750120907956,4.89332865,150.56,150.55,23.24809033]
[1750120908542,8.15324173,150.58,150.55,6.64231152]
[1750120908739,4.90459253,150.57,150.55,6.64231152]
[1750120908936,29.86,150.58,150.55,6.64231152]
[1750120909141,29.86,150.58,150.55,23.24809033]
[1750120909142,4.90493484,150.57,150.55,23.24809033]
[1750120909453,29.86,150.58,150.55,23.24809033]
[1750120909644,4.904169,150.57,150.55,31.40133206]
[1750120909956,29.84,150.6,150.56,8.15324173]
[1750120910256,7.37123036,150.59,150.56,8.15324173]
[1750120910460,4.90728208,150.58,150.56,8.15324173]
[1750120910629,4.90887068,150.57,150.56,8.15324173]
[1750120910832,2.4606752,150.59,150.56,8.15324173]
[1750120911034,4.90826546,150.58,150.57,6.64142923]
[1750120911232,7.3687707,150.58,150.57,6.64142923]
[1750120911442,15.52201243,150.58,150.55,6.64231152]
[1750120911752,4.90826546,150.57,150.55,6.64231152]
[1750120911941,4.90929718,150.56,150.55,6.64231152]
[1750120913429,37.99324173,150.59,150.55,6.64231152]
[1750120913656,7.37737299,150.58,150.55,6.64231152]
[1750120913950,7.37735164,150.57,150.55,6.64231152]
[1750120914158,37.99324173,150.59,150.55,6.64231152]
[1750120914341,7.37841146,150.58,150.55,6.64231152]
[1750120914654,37.99324173,150.59,150.55,6.64231152]
[1750120914858,7.37784754,150.58,150.55,6.64231152]
[1750120915036,7.3766405,150.57,150.55,6.64231152]
[1750120915355,14.11391868,150.62,150.56,8.15324173]
[1750120915549,37.19732073,150.61,150.57,8.15324173]
[1750120915853,7.37619149,150.6,150.56,8.15324173]
[1750120916055,37.97324173,150.61,150.56,8.15324173]
[1750120916749,10.61702035,150.6,150.55,31.40133206]
[1750120916946,13.06541948,150.6,150.55,31.40133206]
[1750120917251,13.06552488,150.6,150.55,31.40133206]
[1750120917453,8.15324173,150.6,150.55,31.40133206]
[1750120918049,37.95324173,150.61,150.56,8.15324173]
[1750120918857,8.15324173,150.61,150.55,23.24809033]
[1750120919058,8.15324173,150.58,150.55,6.64231152]
[1750120919778,8.15324173,150.56,150.54,7.54]
[1750120919937,8.15324173,150.55,150.54,7.54]
[1750120920835,27.08721373,150.55,150.54,7.54]
[1750120921138,0.28432314,150.53,150.46,7.44]
[1750120921349,8.15324173,150.48,150.46,7.44]
[1750120921662,29.78,150.52,150.46,7.44]
[1750120921663,8.15324173,150.47,150.46,7.44]
[1750120921831,8.15324173,150.47,150.43,59.26748147]
[1750120922032,8.15324173,150.44,150.33,14.52493219]
[1750120922236,8.15324173,150.38,150.34,7.44]
[1750120922632,8.15324173,150.36,150.34,7.44]
[1750120923038,8.15324173,150.35,150.34,7.44]
[1750120923741,29.78,150.37,150.34,7.44]
[1750120923947,8.15324173,150.38,150.34,14.09145767]
[1750120924148,8.15324173,150.37,150.34,14.09145767]
[1750120924866,12.65497707,150.37,150.34,14.09145767]
[1750120925070,12.65497707,150.36,150.34,7.44]
[1750120925261,29.78,150.39,150.34,14.0914888]
[1750120925435,12.65497707,150.35,150.34,14.0914888]
[1750120925761,12.65497707,150.35,150.34,7.44]
[1750120926567,42.43497707,150.35,150.32,51.23448695]
[1750120926779,12.65497707,150.33,150.28,7.46]
[1750120926959,12.65497707,150.31,150.28,7.46]
[1750120927259,12.65497707,150.3,150.28,7.46]
[1750120927939,12.65497707,150.29,150.24,6.65597547]
[1750120928368,55.76,150.31,150.18,5.42200771]
[1750120928369,12.65497707,150.25,150.18,7.46]
[1750120928540,26.0,150.28,150.18,20.11497707]
[1750120928541,12.65497707,150.23,150.18,20.11497707]
[1750120928862,12.65497707,150.23,150.19,12.65497707]
[1750120929042,29.76,150.24,150.19,12.65497707]
[1750120929239,12.65497707,150.23,150.19,12.65497707]
[1750120929441,29.76,150.24,150.2,6.65778961]
[1750120929684,16.4549,150.34,150.23,12.65497707]
[1750120929685,0.14216157,150.33,150.23,12.65497707]
[1750120929962,0.14216157,150.33,150.2,49.30226364]
[1750120929963,12.65497707,150.24,150.2,32.65778961]
[1750120930267,12.65497707,150.25,150.21,12.65497707]
[1750120930763,38.65497707,150.31,150.24,12.65497707]
[1750120930957,42.43497707,150.3,150.25,12.65497707]
[1750120931341,42.43497707,150.3,150.26,6.6551311]
[1750120931949,42.43497707,150.3,150.26,19.31010817]
[1750120932761,42.43497707,150.3,150.26,6.6551311]
[1750120933164,0.28432314,150.35,150.26,23.29295886]
[1750120933466,0.28432314,150.34,150.27,12.65497707]
[1750120933673,12.65497707,150.31,150.27,12.65497707]
[1750120933881,29.76,150.3,150.26,12.65497707]
[1750120934370,29.76,150.3,150.24,7.46]
[1750120934371,12.65497707,150.27,150.24,7.46]
[1750120934554,12.65497707,150.25,150.24,7.46]
[1750120934951,42.41497707,150.26,150.24,7.46]
[1750120935654,12.65497707,150.25,150.24,7.46]
[1750120937345,12.65497707,150.25,150.18,7.46]
[1750120937541,12.65497707,150.21,150.18,14.11848429]
[1750120937765,12.65497707,150.2,150.18,14.11848429]
[1750120937973,42.41497707,150.21,150.18,14.11848429]
[1750120938270,29.76,150.21,150.2,12.65497707]
[1750120938654,44.933972,150.27,150.18,14.11848429]
[1750120938655,12.65497707,150.22,150.18,14.11848429]
[1750120938861,12.65497707,150.2,150.18,14.11848429]
[1750120939166,12.65497707,150.2,150.18,7.46]
[1750120939946,29.74,150.21,150.18,7.46]
[1750120940156,12.65497707,150.2,150.18,14.11861973]
[1750120940360,12.65497707,150.19,150.18,7.46]
[1750120941575,29.74,150.21,150.18,7.46]
[1750120941750,12.65497707,150.19,150.18,7.46]
[1750120943553,31.58894907,150.19,150.07,8.1965]
[1750120943753,12.65497707,150.14,150.12,7.46]
[1750120943977,12.65497707,150.13,150.12,7.46]
[1750120944469,12.65497707,150.14,150.12,7.46]
[1750120945073,12.65497707,150.13,150.12,7.46]
[1750120945752,26.0,150.18,150.12,7.46]
[1750120945946,29.72,150.17,150.13,12.65497707]
[1750120946377,18.64964886,150.24,150.15,12.65497707]
[1750120946554,44.64964886,150.22,150.15,12.65497707]
[1750120946880,8.1959249,150.2,150.15,8.1959249]
[1750120947063,29.72,150.19,150.15,8.1959249]
[1750120947393,29.72,150.19,150.16,6.65956313]
[1750120947749,18.64964886,150.22,150.16,6.65956313]
[1750120947950,8.1959249,150.2,150.16,6.65956313]
[1750120948458,8.1959249,150.2,150.16,14.85548803]
[1750120948769,29.72,150.2,150.16,14.85548803]
[1750120949070,29.72,150.2,150.16,19.34128752]
[1750120949071,42.40172439,150.2,150.16,19.34128752]
[1750120949378,29.72,150.2,150.16,19.34128752]
[1750120949878,12.68172439,150.24,150.19,12.68172439]
[1750120950064,29.72,150.23,150.19,12.68172439]
[1750120950261,12.68172439,150.24,150.19,12.68172439]
[1750120950664,29.72,150.23,150.19,12.68172439]
[1750120951250,12.68172439,150.2,150.16,19.34128752]
[1750120951668,12.68172439,150.21,150.16,19.34128752]
[1750120951863,12.68172439,150.22,150.17,12.68172439]
[1750120953191,42.40172439,150.23,150.18,12.68172439]
[1750120953372,29.7,150.23,150.2,19.33922245]
[1750120953568,26.0,150.26,150.2,6.65749806]
[1750120953781,12.68172439,150.24,150.2,6.65749806]
[1750120954087,0.14216157,150.27,150.2,19.33922245]
[1750120954388,12.68172439,150.25,150.2,19.33922245]
[1750120954591,29.7,150.26,150.2,23.30197209]
[1750120954592,12.68172439,150.26,150.2,23.30197209]
[1750120954763,29.7,150.25,150.21,12.68172439]
[1750120955172,42.38172439,150.24,150.2,6.65749806]
[1750120955701,12.68172439,150.22,150.19,14.03809758]
[1750120955993,12.68172439,150.21,150.19,14.03809758]
[1750120956160,12.68172439,150.22,150.19,14.03809758]
[1750120956360,12.68172439,150.21,150.19,7.38]
[1750120956561,12.68172439,150.21,150.19,14.03821112]
[1750120956771,12.68172439,150.21,150.19,7.38]
[1750120956973,12.68172439,150.21,150.19,14.03815289]
[1750120958663,44.933972,150.25,150.15,26.0]
[1750120958664,12.68172439,150.2,150.15,26.0]
[1750120958865,12.68172439,150.19,150.15,7.38]
[1750120959093,12.68172439,150.19,150.15,20.06172439]
[1750120959388,29.68,150.2,150.18,12.68172439]
[1750120959589,12.68172439,150.21,150.16,0.14216157]
[1750120959791,12.68172439,150.21,150.16,12.68172439]
[1750120959991,42.36172439,150.22,150.17,12.68172439]
[1750120960178,42.34172439,150.22,150.18,6.65867625]
[1750120961193,12.68172439,150.25,150.2,12.68172439]
[1750120961390,29.66,150.24,150.2,12.68172439]
[1750120962189,12.68172439,150.27,150.22,12.68172439]
[1750120962408,12.68172439,150.27,150.23,12.68172439]
[1750120962409,29.66,150.26,150.23,12.68172439]
[1750120962590,12.68172439,150.27,150.23,12.68172439]
[1750120962973,29.66,150.27,150.24,12.68172439]
[1750120963176,29.66,150.27,150.23,12.68172439]
[1750120963479,149.1,150.31,150.26,12.68172439]
[1750120963794,12.68172439,150.33,150.28,12.68172439]
[1750120964183,12.68172439,150.37,150.32,12.68172439]
[1750120964496,29.64,150.36,150.33,12.68172439]
[1750120964705,29.64,150.36,150.29,7.38]
[1750120964706,29.64,150.36,150.32,12.68172439]
[1750120965011,29.64,150.36,150.33,12.68172439]
[1750120965298,29.64,150.38,150.34,12.68172439]
[1750120965476,42.32172439,150.38,150.33,12.68172439]
[1750120966094,29.64,150.38,150.34,12.68172439]
[1750120966308,29.64,150.38,150.35,6.65114732]
[1750120966787,26.0,150.41,150.35,6.65114732]
[1750120966788,12.68172439,150.4,150.35,6.65114732]
[1750120967093,12.68172439,150.4,150.35,19.33287171]
[1750120967292,29.64,150.39,150.35,19.33287171]
[1750120967493,42.32172439,150.39,150.35,19.33287171]
[1750120967699,12.68172439,150.37,150.3,48.73804993]
[1750120967904,42.30172439,150.36,150.31,20.06172439]
[1750120968098,29.62,150.36,150.33,12.68172439]
[1750120968274,29.62,150.36,150.34,6.65158972]
[1750120968880,12.68172439,150.41,150.35,12.68172439]
[1750120969175,18.64964886,150.43,150.39,12.68172439]
[1750120969176,34.52465839,150.43,150.39,12.68172439]
[1750120969390,42.30172439,150.43,150.39,12.68172439]
[1750120970179,42.30172439,150.43,150.39,19.33066622]
[1750120970598,26.0,150.45,150.4,12.68172439]
[1750120970787,4.90089369,150.45,150.41,8.16689626]
[1750120970989,178.7,150.46,150.42,8.16689626]
[1750120971299,29.6,150.46,150.43,8.16689626]
[1750120971691,8.16689626,150.48,150.43,8.16689626]
[1750120971888,8.16689626,150.45,150.39,6.64894183]
[1750120972082,18.64964886,150.43,150.37,6.64987712]
[1750120972280,8.16689626,150.4,150.37,14.00987712]
[1750120972504,8.16689626,150.38,150.37,7.36]
[1750120972803,37.76689626,150.38,150.37,7.36]
[1750120972986,18.64964886,150.37,150.31,7.36]
[1750120973184,8.16689626,150.34,150.31,7.36]
[1750120973392,8.16689626,150.34,150.3,6.65324826]
[1750120973599,29.58,150.35,150.3,14.01324826]
[1750120973600,8.16689626,150.33,150.3,14.01324826]
[1750120973993,8.16689626,150.34,150.3,14.01324826]
[1750120974404,29.58,150.35,150.33,8.16689626]
[1750120974878,42.23563883,150.35,150.3,52.66888709]
[1750120975081,12.65563883,150.34,150.3,52.66888709]
[1750120976190,12.65563883,150.34,150.3,40.01324826]
[1750120976505,29.58,150.35,150.3,40.01324826]
[1750120976506,12.65563883,150.33,150.3,40.01324826]
[1750120976700,12.65563883,150.33,150.3,14.01324826]
[1750120977017,12.65563883,150.33,150.3,14.01319572]
[1750120977196,29.58,150.35,150.3,7.36]
[1750120977383,12.65563883,150.34,150.3,26.66883632]
[1750120977806,12.65563883,150.33,150.3,7.36]
[1750120978012,12.65563883,150.33,150.3,14.01326063]
[1750120978178,12.65563883,150.33,150.3,7.36]
[1750120978486,29.58,150.35,150.3,7.36]
[1750120978487,12.65563883,150.31,150.3,7.36]
[1750120978811,42.21563883,150.32,150.3,7.36]
[1750120979387,12.65563883,150.31,150.3,7.36]
[1750120980481,29.56,150.32,150.3,7.36]
[1750120980683,12.65563883,150.31,150.3,7.36]
[1750120980884,29.56,150.32,150.3,7.36]
[1750120981111,12.65563883,150.34,150.3,14.01320319]
[1750120981320,29.54,150.33,150.3,14.01320319]
[1750120981516,12.65563883,150.35,150.3,26.66884202]
[1750120981701,29.54,150.34,150.31,12.65563883]
[1750120981890,12.65563883,150.4,150.33,12.65563883]
[1750120982086,29.54,150.39,150.35,12.65563883]
[1750120982287,42.19563883,150.39,150.34,12.65563883]
[1750120982512,42.19563883,150.39,150.34,19.30679205]
[1750120982817,42.19563883,150.39,150.31,19.30855613]
[1750120982818,12.65563883,150.36,150.31,19.30855613]
[1750120983000,42.19563883,150.36,150.31,19.30855613]
[1750120983203,29.54,150.36,150.32,12.65563883]
[1750120983406,12.65563883,150.39,150.34,12.65563883]
[1750120983587,29.54,150.38,150.35,12.65563883]
[1750120983917,29.54,150.38,150.34,12.65563883]
[1750120984515,12.65563883,150.36,150.32,12.65563883]
[1750120984683,12.65563883,150.36,150.32,6.65247472]
[1750120985999,12.65563883,150.37,150.32,19.30811355]
[1750120987093,42.17563883,150.37,150.32,19.30811355]
[1750120987618,12.65563883,150.36,150.32,6.65247472]
[1750120987822,6.3781,150.42,150.32,23.28366152]
[1750120988107,6.64672648,150.45,150.32,23.28366152]
[1750120988309,12.65563883,150.4,150.36,12.65563883]
[1750120988611,12.65563883,150.4,150.36,19.93563883]
[1750120988806,12.65563883,150.39,150.36,7.28]